fUSD/lending_fUSD_20240527
["ID","MTS","AMOUNT","RATE_DAILY","PERIOD"]
[328015541,1716773499904,-500.0,0.00029315,4]
[328015542,1716773499914,-500.0,0.00029315,4]
[328015543,1716773499923,-500.0,0.00029315,4]
[328015544,1716773499933,-500.0,0.00029315,4]
[328015545,1716773499943,-500.0,0.00029315,4]
[328015546,1716773499953,-500.0,0.00029315,4]
[328015547,1716773499965,-500.0,0.00029315,4]
[328015548,1716773499984,-500.0,0.00029315,4]
[328015549,1716773499993,-500.0,0.00029315,4]
[328015550,1716773500003,-500.0,0.00029315,4]
[328015551,1716773500012,-509.3,0.00029315,4]
[328015552,1716773500022,-500.0,0.00029315,4]
[328015553,1716773500032,-500.0,0.00029315,4]
[328015554,1716773500042,-500.0,0.00029315,4]
[328015555,1716773500051,-530.05087784,0.00029315,4]
[328015556,1716773500061,-500.0,0.00029315,4]
[328015557,1716773500070,-500.0,0.00029315,4]
[328015558,1716773500080,-500.0,0.00029315,4]
[328015559,1716773500090,-500.0,0.00029315,4]
[328015560,1716773500100,-500.0,0.00029315,4]
[328015561,1716773500110,-500.0,0.00029315,4]
[328015562,1716773500120,-500.0,0.00029315,4]
[328015563,1716773500129,-618.09,0.00029315,4]
[328015564,1716773500139,-500.0,0.00029315,4]
[328015565,1716773500149,-500.0,0.00029315,4]
[328015566,1716773500159,-500.0,0.00029315,4]
[328015567,1716773500168,-500.0,0.00029315,4]
[328015568,1716773500178,-500.0,0.00029315,4]
[328015569,1716773500188,-500.0,0.00029315,4]
[328015570,1716773500197,-176.92923746,0.00029315,4]
[328015571,1716773500207,-500.0,0.00029315,4]
[328015572,1716773500217,-500.0,0.00029315,4]
[328015573,1716773500226,-500.0,0.00029315,4]
[328015574,1716773500235,-500.0,0.00029315,4]
[328015575,1716773500244,-500.0,0.00029315,4]
[328015576,1716773500254,-500.0,0.00029315,4]
[328015577,1716773500263,-500.0,0.00029315,4]
[328015578,1716773500273,-500.0,0.00029315,4]
[328015579,1716773500282,-500.0,0.00029315,4]
[328015580,1716773500292,-500.0,0.00029315,4]
[328015581,1716773500302,-500.0,0.00029315,4]
[328015582,1716773500311,-500.0,0.00029315,4]
[328015583,1716773500321,-500.0,0.00029315,4]
[328015584,1716773500331,-500.0,0.00029315,4]
[328015585,1716773500340,-500.0,0.00029315,4]
[328015586,1716773500349,-500.0,0.00029315,4]
[328015587,1716773500359,-500.0,0.00029315,4]
[328015588,1716773500370,-500.0,0.00029315,4]
[328015589,1716773500380,-525.03,0.00029315,4]
[328015590,1716773500388,-500.0,0.00029315,4]
[328015591,1716773500397,-500.0,0.00029315,4]
[328015592,1716773500406,-500.0,0.00029315,4]
[328015593,1716773500416,-174.7945774,0.00029315,4]
[328015594,1716773500426,-500.0,0.00029315,4]
[328015595,1716773500435,-500.0,0.00029315,4]
[328015596,1716773500445,-500.0,0.00029315,4]
[328015597,1716773500455,-500.0,0.00029315,4]
[328015598,1716773500464,-539.9,0.00029315,4]
[328015599,1716773500475,-657.09,0.00029315,4]
[328015600,1716773500484,-500.0,0.00029315,4]
[328015601,1716773500494,-500.0,0.00029315,4]
[328015602,1716773500504,-500.0,0.00029315,4]
[328015603,1716773500514,-500.0,0.00029315,4]
[328015604,1716773500524,-500.0,0.00029315,4]
[328015605,1716773500533,-500.0,0.00029315,4]
[328015606,1716773500544,-500.0,0.00029315,4]
[328015607,1716773500553,-500.0,0.00029315,4]
[328015608,1716773500563,-500.0,0.00029315,4]
[328015609,1716773500572,-500.0,0.00029315,4]
[328015610,1716773500581,-500.0,0.00029315,4]
[328015611,1716773500591,-500.0,0.00029315,4]
[328015612,1716773500600,-500.0,0.00029315,4]
[328015613,1716773500610,-750.33,0.00029315,4]
[328015614,1716773500619,-500.0,0.00029315,4]
[328015615,1716773500630,-500.0,0.00029315,4]
[328015616,1716773500639,-500.0,0.00029315,4]
[328015617,1716773500649,-743.01,0.00029315,4]
[328015618,1716773500659,-500.0,0.00029315,4]
[328015619,1716773500668,-500.0,0.00029315,4]
[328015620,1716773500678,-500.0,0.00029315,4]
[328015621,1716773500687,-489.64,0.00029315,4]
[328015622,1716773500697,-500.0,0.00029315,4]
[328015623,1716773500706,-500.0,0.00029315,4]
[328015624,1716773500715,-613.12,0.00029315,4]
[328015625,1716773500725,-500.0,0.00029315,4]
[328015626,1716773500735,-500.0,0.00029315,4]
[328015627,1716773500744,-500.0,0.00029315,4]
[328015628,1716773500755,-500.0,0.00029315,4]
[328015629,1716773500764,-500.0,0.00029315,4]
[328015630,1716773500773,-500.0,0.00029315,4]
[328015631,1716773500783,-500.0,0.00029315,4]
[328015632,1716773500792,-500.0,0.00029315,4]
[328015633,1716773500802,-500.0,0.00029315,4]
[328015634,1716773500811,-500.0,0.00029315,4]
[328015635,1716773500822,-500.0,0.00029315,4]
[328015636,1716773500835,-674.79,0.00029315,4]
[328015637,1716773500844,-500.0,0.00029315,4]
[328015638,1716773500853,-500.0,0.00029315,4]
[328015639,1716773500862,-500.0,0.00029315,4]
[328015640,1716773500874,-500.0,0.00029315,4]
[328015641,1716773500883,-500.0,0.00029315,4]
[328015642,1716773500893,-637.71,0.00029315,4]
[328015643,1716773500905,-500.0,0.00029315,4]
[328015644,1716773500914,-500.0,0.00029315,4]
[328015645,1716773500923,-500.0,0.00029315,4]
[328015646,1716773500933,-610.35,0.00029315,4]
[328015647,1716773500942,-565.63,0.00029315,4]
[328015648,1716773500951,-500.0,0.00029315,4]
[328015649,1716773500960,-500.0,0.00029315,4]
[328015650,1716773500969,-500.0,0.00029315,4]
[328015651,1716773500979,-500.0,0.00029315,4]
[328015652,1716773500988,-500.0,0.00029315,4]
[328015653,1716773500997,-1112.41,0.00029315,4]
[328015654,1716773501007,-500.0,0.00029315,4]
[328015655,1716773501015,-500.0,0.00029315,4]
[328015656,1716773501024,-392.14296799,0.00029315,4]
[328015657,1716773501033,-518.47,0.00029315,4]
[328015658,1716773501043,-500.0,0.00029315,4]
[328015659,1716773501052,-500.0,0.00029315,4]
[328015660,1716773501062,-820.24,0.00029315,4]
[328015661,1716773501071,-500.0,0.00029315,4]
[328015662,1716773501081,-500.0,0.00029315,4]
[328015663,1716773501090,-500.0,0.00029315,4]
[328015664,1716773501099,-500.0,0.00029315,4]
[328015665,1716773501108,-500.0,0.00029315,4]
[328015666,1716773501117,-500.0,0.00029315,4]
[328015667,1716773501128,-500.0,0.00029315,4]
[328015668,1716773501137,-813.92,0.00029315,4]
[328015669,1716773501146,-500.0,0.00029315,4]
[328015670,1716773501155,-500.0,0.00029315,4]
[328015671,1716773501164,-500.0,0.00029315,4]
[328015672,1716773501173,-500.0,0.00029315,4]
[328015673,1716773501182,-500.0,0.00029315,4]
[328015674,1716773501191,-500.0,0.00029315,4]
[328015675,1716773501200,-500.0,0.00029315,4]
[328015676,1716773501210,-500.0,0.00029315,4]
[328015677,1716773501219,-500.0,0.00029315,4]
[328015678,1716773501228,-1135.33,0.00029315,4]
[328015679,1716773501238,-1037.2,0.00029315,4]
[328015680,1716773501247,-500.0,0.00029315,4]
[328015681,1716773501256,-1002.02,0.00029315,4]
[328015682,1716773501266,-500.0,0.00029315,4]
[328015683,1716773501275,-500.0,0.00029315,4]
[328015684,1716773501284,-696.41,0.00029315,4]
[328015685,1716773501294,-526.63,0.00029315,4]
[328015686,1716773501303,-500.0,0.00029315,4]
[328015687,1716773501312,-500.0,0.00029315,4]
[328015688,1716773501321,-500.0,0.00029315,4]
[328015689,1716773501331,-659.81,0.00029315,4]
[328015690,1716773501340,-566.26,0.00029315,4]
[328015691,1716773501349,-724.95,0.00029315,4]
[328015692,1716773501358,-715.24,0.00029315,4]
[328015693,1716773501367,-500.0,0.00029315,4]
[328015694,1716773501378,-500.0,0.00029315,4]
[328015695,1716773501387,-500.0,0.00029315,4]
[328015696,1716773501396,-500.0,0.00029315,4]
[328015697,1716773501405,-537.11,0.00029315,4]
[328015698,1716773501414,-500.0,0.00029315,4]
[328015699,1716773501423,-500.0,0.00029315,4]
[328015700,1716773501432,-1115.92,0.00029315,4]
[328015701,1716773501441,-514.34,0.00029315,4]
[328015702,1716773501451,-500.0,0.00029315,4]
[328015703,1716773501460,-500.0,0.00029315,4]
[328015704,1716773501470,-500.0,0.00029315,4]
[328015705,1716773501479,-500.0,0.00029315,4]
[328015706,1716773501488,-500.0,0.00029315,4]
[328015707,1716773501497,-500.0,0.00029315,4]
[328015708,1716773501507,-500.0,0.00029315,4]
[328015709,1716773501516,-500.0,0.00029315,4]
[328015710,1716773501525,-500.0,0.00029315,4]
[328015711,1716773501535,-500.0,0.00029315,4]
[328015712,1716773501544,-1161.05,0.00029315,4]
[328015713,1716773501553,-657.79,0.00029315,4]
[328015714,1716773501561,-500.0,0.00029315,4]
[328015715,1716773501571,-500.0,0.00029315,4]
[328015716,1716773501579,-500.0,0.00029315,4]
[328015717,1716773501589,-500.0,0.00029315,4]
[328015718,1716773501598,-513.43,0.00029315,4]
[328015719,1716773501607,-563.52,0.00029315,4]
[328015720,1716773501616,-553.3,0.00029315,4]
[328015721,1716773501625,-500.0,0.00029315,4]
[328015722,1716773501634,-590.37,0.00029315,4]
[328015723,1716773501643,-500.0,0.00029315,4]
[328015724,1716773501652,-500.0,0.00029315,4]
[328015725,1716773501661,-500.0,0.00029315,4]
[328015726,1716773501670,-500.0,0.00029315,4]
[328015727,1716773501679,-500.0,0.00029315,4]
[328015728,1716773501688,-500.0,0.00029315,4]
[328015729,1716773501697,-500.0,0.00029315,4]
[328015730,1716773501707,-500.0,0.00029315,4]
[328015731,1716773501716,-677.81,0.00029315,4]
[328015732,1716773501725,-640.38,0.00029315,4]
[328015733,1716773501734,-500.0,0.00029315,4]
[328015734,1716773501743,-500.0,0.00029315,4]
[328015735,1716773501752,-689.4,0.00029315,4]
[328015736,1716773501761,-441.63856564,0.00029315,4]
[328015737,1716773501770,-500.0,0.00029315,4]
[328015738,1716773501779,-500.0,0.00029315,4]
[328015739,1716773501788,-500.0,0.00029315,4]
[328015740,1716773501798,-566.57,0.00029315,4]
[328015741,1716773501807,-1225.47,0.00029315,4]
[328015742,1716773501816,-500.0,0.00029315,4]
[328015743,1716773501829,-652.09,0.00029315,4]
[328015744,1716773501838,-500.0,0.00029315,4]
[328015745,1716773501848,-921.84,0.00029315,4]
[328015746,1716773501857,-500.0,0.00029315,4]
[328015747,1716773501867,-500.0,0.00029315,4]
[328015748,1716773501876,-796.9,0.00029315,4]
[328015749,1716773501885,-531.92,0.00029315,4]
[328015750,1716773501894,-500.0,0.00029315,4]
[328015751,1716773501905,-500.0,0.00029315,4]
[328015752,1716773501915,-500.0,0.00029315,4]
[328015753,1716773501924,-500.0,0.00029315,4]
[328015754,1716773501934,-189.77837042,0.00029315,4]
[328015755,1716773501943,-911.01,0.00029315,4]
[328015756,1716773501952,-1333.61,0.00029315,4]
[328015757,1716773501961,-500.0,0.00029315,4]
[328015758,1716773501970,-500.0,0.00029315,4]
[328015759,1716773501979,-641.37,0.00029315,4]
[328015760,1716773501988,-500.0,0.00029315,4]
[328015761,1716773501997,-500.0,0.00029315,4]
[328015762,1716773502007,-500.0,0.00029315,4]
[328015763,1716773502015,-500.0,0.00029315,4]
[328015764,1716773502025,-514.48,0.00029315,4]
[328015765,1716773502034,-500.0,0.00029315,4]
[328015766,1716773502043,-500.0,0.00029315,4]
[328015767,1716773502052,-1275.39,0.00029315,4]
[328015768,1716773502061,-500.0,0.00029315,4]
[328015769,1716773502070,-500.0,0.00029315,4]
[328015770,1716773502080,-1100.98,0.00029315,4]
[328015771,1716773502090,-500.0,0.00029315,4]
[328015772,1716773502099,-500.0,0.00029315,4]
[328015773,1716773502108,-500.0,0.00029315,4]
[328015774,1716773502118,-500.0,0.00029315,4]
[328015775,1716773502127,-500.0,0.00029315,4]
[328015776,1716773502136,-500.0,0.00029315,4]
[328015777,1716773502146,-690.87,0.00029315,4]
[328015778,1716773502156,-500.0,0.00029315,4]
[328015779,1716773502166,-1641.89,0.00029315,4]
[328015780,1716773502175,-500.0,0.00029315,4]
[328015781,1716773502186,-500.0,0.00029315,4]
[328015782,1716773502198,-500.0,0.00029315,4]
[328015783,1716773502207,-500.0,0.00029315,4]
[328015784,1716773502215,-500.0,0.00029315,4]
[328015785,1716773502225,-500.0,0.00029315,4]
[328015786,1716773502234,-500.0,0.00029315,4]
[328015787,1716773502243,-500.0,0.00029315,4]
[328015788,1716773502252,-500.0,0.00029315,4]
[328015789,1716773502261,-500.0,0.00029315,4]
[328015790,1716773502270,-935.12,0.00029315,4]
[328015791,1716773502279,-500.0,0.00029315,4]
[328015792,1716773502288,-500.0,0.00029315,4]
[328015793,1716773502297,-677.22,0.00029315,4]
[328015794,1716773502306,-1013.07,0.00029315,4]
[328015795,1716773502315,-500.0,0.00029315,4]
[328015796,1716773502325,-500.0,0.00029315,4]
[328015797,1716773502334,-552.18,0.00029315,4]
[328015798,1716773502344,-500.0,0.00029315,4]
[328015799,1716773502353,-500.0,0.00029315,4]
[328015800,1716773502363,-861.85,0.00029315,4]
[328015801,1716773502372,-858.84,0.00029315,4]
[328015802,1716773502381,-500.0,0.00029315,4]
[328015803,1716773502390,-500.0,0.00029315,4]
[328015804,1716773502399,-500.0,0.00029315,4]
[328015805,1716773502408,-500.0,0.00029315,4]
[328015806,1716773502418,-500.0,0.00029315,4]
[328015807,1716773502427,-500.0,0.00029315,4]
[328015808,1716773502436,-811.31,0.00029315,4]
[328015809,1716773502445,-549.95,0.00029315,4]
[328015810,1716773502454,-500.0,0.00029315,4]
[328015811,1716773502463,-500.0,0.00029315,4]
[328015812,1716773502472,-500.0,0.00029315,4]
[328015813,1716773502481,-500.0,0.00029315,4]
[328015814,1716773502490,-500.0,0.00029315,4]
[328015815,1716773502498,-620.92,0.00029315,4]
[328015816,1716773502507,-742.45,0.00029315,4]
[328015817,1716773502516,-500.0,0.00029315,4]
[328015818,1716773502524,-500.0,0.00029315,4]
[328015819,1716773502531,-500.0,0.00029315,4]
[328015820,1716773502539,-500.0,0.00029315,4]
[328015821,1716773502547,-500.0,0.00029315,4]
[328015822,1716773502555,-500.0,0.00029315,4]
[328015823,1716773502562,-500.0,0.00029315,4]
[328015824,1716773502570,-611.76,0.00029315,4]
[328015825,1716773502578,-500.0,0.00029315,4]
[328015826,1716773502586,-380.68902269,0.00029315,4]
[328015827,1716773502595,-500.0,0.00029315,4]
[328015828,1716773502603,-500.0,0.00029315,4]
[328015829,1716773502612,-1162.24,0.00029315,4]
[328015830,1716773502619,-500.0,0.00029315,4]
[328015831,1716773502628,-500.0,0.00029315,4]
[328015832,1716773502636,-500.0,0.00029315,4]
[328015833,1716773502643,-532.40138684,0.00029315,4]
[328015834,1716773502651,-803.05,0.00029315,4]
[328015835,1716773502659,-722.78,0.00029315,4]
[328015836,1716773502668,-500.0,0.00029315,4]
[328015837,1716773502676,-500.0,0.00029315,4]
[328015838,1716773502685,-500.0,0.00029315,4]
[328015839,1716773502694,-500.0,0.00029315,4]
[328015840,1716773502703,-958.44,0.00029315,4]
[328015841,1716773502711,-500.0,0.00029315,4]
[328015842,1716773502719,-500.0,0.00029315,4]
[328015843,1716773502727,-665.19,0.00029315,4]
[328015844,1716773502735,-500.0,0.00029315,4]
[328015845,1716773502743,-500.0,0.00029315,4]
[328015846,1716773502751,-500.0,0.00029315,4]
[328015847,1716773502759,-500.0,0.00029315,4]
[328015848,1716773502768,-500.0,0.00029315,4]
[328015849,1716773502776,-500.0,0.00029315,4]
[328015850,1716773502784,-742.73,0.00029315,4]
[328015851,1716773502792,-500.0,0.00029315,4]
[328015852,1716773502800,-500.0,0.00029315,4]
[328015853,1716773502808,-1148.79,0.00029315,4]
[328015854,1716773502816,-500.0,0.00029315,4]
[328015855,1716773502828,-684.31,0.00029315,4]
[328015856,1716773503032,-868.94,0.00029315,4]
[328015857,1716773503043,-500.0,0.00029315,4]
[328015858,1716773503052,-500.0,0.00029315,4]
[328015859,1716773503062,-555.76,0.00029315,4]
[328015860,1716773503072,-500.0,0.00029315,4]
[328015861,1716773503081,-500.0,0.00029315,4]
[328015862,1716773503091,-500.0,0.00029315,4]
[328015863,1716773503101,-1021.87,0.00029315,4]
[328015864,1716773503111,-500.0,0.00029315,4]
[328015865,1716773503121,-252.83197003,0.00029315,4]
[328015866,1716773503130,-771.51,0.00029315,4]
[328015867,1716773503141,-500.0,0.00029315,4]
[328015868,1716773503152,-500.0,0.00029315,4]
[328015869,1716773503162,-500.0,0.00029315,4]
[328015870,1716773503173,-1127.03,0.00029315,4]
[328015871,1716773503184,-500.0,0.00029315,4]
[328015872,1716773503195,-568.94,0.00029315,4]
[328015873,1716773503205,-500.0,0.00029315,4]
[328015874,1716773503216,-792.94,0.00029315,4]
[328015875,1716773503226,-500.0,0.00029315,4]
[328015876,1716773503236,-1040.28,0.00029315,4]
[328015877,1716773503246,-500.0,0.00029315,4]
[328015878,1716773503256,-500.0,0.00029315,4]
[328015879,1716773503267,-565.33,0.00029315,4]
[328015880,1716773503276,-337.22913422,0.00029315,4]
[328015881,1716773503286,-621.99,0.00029315,4]
[328015882,1716773503296,-183.4310685,0.00029315,4]
[328015883,1716773503305,-248.11,0.00029315,4]
[328015884,1716773503315,-641.85,0.00029315,4]
[328015885,1716773503324,-500.0,0.00029315,4]
[328015886,1716773503335,-500.0,0.00029315,4]
[328015887,1716773503345,-590.75,0.00029315,4]
[328015888,1716773503354,-500.0,0.00029315,4]
[328015889,1716773503365,-500.0,0.00029315,4]
[328015890,1716773503376,-849.19,0.00029315,4]
[328015891,1716773503387,-500.0,0.00029315,4]
[328015892,1716773503399,-500.0,0.00029315,4]
[328015893,1716773503410,-889.12,0.00029315,4]
[328015894,1716773503420,-530.16,0.00029315,4]
[328015895,1716773503429,-536.89,0.00029315,4]
[328015896,1716773503439,-500.0,0.00029315,4]
[328015897,1716773503449,-1259.29,0.00029315,4]
[328015898,1716773503459,-500.0,0.00029315,4]
[328015899,1716773503468,-500.0,0.00029315,4]
[328015900,1716773503478,-500.0,0.00029315,4]
[328015901,1716773503488,-500.0,0.00029315,4]
[328015902,1716773503498,-500.0,0.00029315,4]
[328015903,1716773503507,-500.0,0.00029315,4]
[328015904,1716773503518,-776.42,0.00029315,4]
[328015905,1716773503529,-568.42,0.00029315,4]
[328015906,1716773503538,-1677.95,0.00029315,4]
[328015907,1716773503548,-646.9,0.00029315,4]
[328015908,1716773503558,-660.3,0.00029315,4]
[328015909,1716773503568,-537.3,0.00029315,4]
[328015910,1716773503577,-500.0,0.00029315,4]
[328015911,1716773503586,-500.0,0.00029315,4]
[328015912,1716773503596,-2614.52,0.00029315,4]
[328015913,1716773503606,-579.16,0.00029315,4]
[328015914,1716773503616,-1322.14,0.00029315,4]
[328015915,1716773503627,-969.5,0.00029315,4]
[328015916,1716773503636,-500.0,0.00029315,4]
[328015917,1716773503645,-500.0,0.00029315,4]
[328015918,1716773503654,-609.69,0.00029315,4]
[328015919,1716773503663,-500.0,0.00029315,4]
[328015920,1716773503673,-506.32,0.00029315,4]
[328015921,1716773503683,-500.0,0.00029315,4]
[328015922,1716773503692,-441.24977146,0.00029315,4]
[328015923,1716773503702,-500.0,0.00029315,4]
[328015924,1716773503711,-1140.34,0.00029315,4]
[328015925,1716773503722,-1339.71,0.00029315,4]
[328015926,1716773503733,-673.21,0.00029315,4]
[328015927,1716773503743,-859.67,0.00029315,4]
[328015928,1716773503753,-7686.08,0.00029315,4]
[328015929,1716773503762,-1172.21,0.00029315,4]
[328015930,1716773503771,-500.0,0.00029315,4]
[328015931,1716773503781,-1287.8,0.00029315,4]
[328015932,1716773503790,-500.0,0.00029315,4]
[328015933,1716773503800,-500.0,0.00029315,4]
[328015934,1716773503809,-500.0,0.00029315,4]
[328015935,1716773503819,-900.49,0.00029315,4]
[328015936,1716773503834,-1037.45,0.00029315,4]
[328015937,1716773503844,-507.12,0.00029315,4]
[328015938,1716773503855,-735.66,0.00029315,4]
[328015939,1716773503866,-500.0,0.00029315,4]
[328015940,1716773503879,-500.0,0.00029315,4]
[328015941,1716773503888,-2771.58,0.00029315,4]
[328015942,1716773503897,-500.0,0.00029315,4]
[328015943,1716773503908,-500.0,0.00029315,4]
[328015944,1716773503920,-500.0,0.00029315,4]
[328015945,1716773503929,-3172.21,0.00029315,4]
[328015946,1716773503939,-500.0,0.00029315,4]
[328015947,1716773503950,-1674.57,0.00029315,4]
[328015948,1716773503961,-500.0,0.00029315,4]
[328015949,1716773503971,-2746.18,0.00029315,4]
[328015950,1716773503980,-500.0,0.00029315,4]
[328015951,1716773503991,-500.0,0.00029315,4]
[328015952,1716773504001,-527.2,0.00029315,4]
[328015953,1716773504011,-500.0,0.00029315,4]
[328015954,1716773504022,-6205.95,0.00029315,4]
[328015955,1716773504032,-500.0,0.00029315,4]
[328015956,1716773504042,-500.0,0.00029315,4]
[328015957,1716773504053,-306.84695545,0.00029315,4]
[328015958,1716773504062,-892.56,0.00029315,4]
[328015959,1716773504072,-706.36,0.00029315,4]
[328015960,1716773504082,-500.0,0.00029315,4]
[328015961,1716773504091,-1206.85,0.00029315,4]
[328015962,1716773504101,-2601.64,0.00029315,4]
[328015963,1716773504110,-627.83,0.00029315,4]
[328015964,1716773504120,-500.0,0.00029315,4]
[328015965,1716773504130,-500.0,0.00029315,4]
[328015966,1716773504140,-500.0,0.00029315,4]
[328015967,1716773504150,-906.32,0.00029315,4]
[328015968,1716773504160,-500.0,0.00029315,4]
[328015969,1716773504170,-1301.17,0.00029315,4]
[328015970,1716773504180,-1348.74,0.00029315,4]
[328015971,1716773504190,-500.0,0.00029315,4]
[328015972,1716773504200,-1356.31,0.00029315,4]
[328015973,1716773504210,-690.34,0.00029315,4]
[328015974,1716773504219,-500.0,0.00029315,4]
[328015975,1716773504228,-500.0,0.00029315,4]
[328015976,1716773504237,-500.0,0.00029315,4]
[328015977,1716773504247,-500.0,0.00029315,4]
[328015978,1716773504257,-500.0,0.00029315,4]
[328015979,1716773504266,-500.0,0.00029315,4]
[328015980,1716773504275,-2143.83,0.00029315,4]
[328015981,1716773504285,-2383.33,0.00029315,4]
[328015982,1716773504295,-500.0,0.00029315,4]
[328015983,1716773504305,-500.0,0.00029315,4]
[328015984,1716773504314,-500.0,0.00029315,4]
[328015985,1716773504324,-500.0,0.00029315,4]
[328015986,1716773504333,-500.0,0.00029315,4]
[328015987,1716773504342,-1576.4,0.00029315,4]
[328015988,1716773504352,-1713.46,0.00029315,4]
[328015989,1716773504362,-786.1,0.00029315,4]
[328015990,1716773504371,-1532.05,0.00029315,4]
[328015991,1716773504380,-3324.33,0.00029315,4]
[328015992,1716773504389,-1197.25,0.00029315,4]
[328015993,1716773504398,-500.0,0.00029315,4]
[328015994,1716773504408,-908.76,0.00029315,4]
[328015995,1716773504417,-606.23,0.00029315,4]
[328015996,1716773504427,-500.0,0.00029315,4]
[328015997,1716773504437,-500.0,0.00029315,4]
[328015998,1716773504446,-500.0,0.00029315,4]
[328015999,1716773504456,-881.49,0.00029315,4]
[328016000,1716773504465,-500.0,0.00029315,4]
[328016001,1716773504475,-760.48,0.00029315,4]
[328016002,1716773504485,-10252.41,0.00029315,4]
[328016003,1716773504495,-500.0,0.00029315,4]
[328016004,1716773504505,-1016.57,0.00029315,4]
[328016005,1716773504514,-601.05,0.00029315,4]
[328016006,1716773504523,-984.73,0.00029315,4]
[328016007,1716773504533,-879.73,0.00029315,4]
[328016008,1716773504542,-500.0,0.00029315,4]
[328016009,1716773504552,-1296.31,0.00029315,4]
[328016010,1716773504562,-913.5,0.00029315,4]
[328016011,1716773504571,-500.0,0.00029315,4]
[328016012,1716773504580,-627.73,0.00029315,4]
[328016013,1716773504590,-12959.85,0.00029315,4]
[328016014,1716773504600,-500.0,0.00029315,4]
[328016015,1716773504610,-500.0,0.00029315,4]
[328016016,1716773504620,-1152.84,0.00029315,4]
[328016017,1716773504630,-500.0,0.00029315,4]
[328016018,1716773504639,-1257.91,0.00029315,4]
[328016019,1716773504648,-500.0,0.00029315,4]
[328016020,1716773504658,-500.0,0.00029315,4]
[328016021,1716773504667,-1837.75,0.00029315,4]
[328016022,1716773504677,-2024.08,0.00029315,4]
[328016023,1716773504686,-500.0,0.00029315,4]
[328016024,1716773504695,-500.0,0.00029315,4]
[328016025,1716773504712,-500.0,0.00029315,4]
[328016026,1716773504731,-1234.35,0.00029315,4]
[328016027,1716773504750,-602.61,0.00029315,4]
[328016028,1716773504764,-1687.26,0.00029315,4]
[328016029,1716773504781,-500.0,0.00029315,4]
[328016030,1716773504798,-500.0,0.00029315,4]
[328016031,1716773504813,-500.0,0.00029315,4]
[328016032,1716773504835,-500.0,0.00029315,4]
[328016033,1716773504849,-500.0,0.00029315,4]
[328016034,1716773504864,-500.0,0.00029315,4]
[328016035,1716773504881,-869.6,0.00029315,4]
[328016036,1716773504896,-572.54,0.00029315,4]
[328016037,1716773504909,-500.0,0.00029315,4]
[328016038,1716773504922,-1160.09,0.00029315,4]
[328016039,1716773504936,-915.48,0.00029315,4]
[328016040,1716773504951,-894.59,0.00029315,4]